fUSD/lending_fUSD_20260115
["ID","MTS","AMOUNT","RATE_DAILY","PERIOD"]
[402046471,1768493460203,-500.0,0.0003863,30]
[402046472,1768493460213,-506.36,0.0003863,30]
[402046473,1768493460223,-500.0,0.0003863,30]
[402046474,1768493460232,-500.0,0.0003863,30]
[402046475,1768493460242,-500.0,0.0003863,30]
[402046476,1768493460251,-998.86,0.0003863,30]
[402046477,1768493460260,-500.0,0.0003863,30]
[402046478,1768493460270,-500.0,0.0003863,30]
[402046479,1768493460280,-500.0,0.0003863,30]
[402046480,1768493460289,-562.64,0.0003863,30]
[402046481,1768493460299,-500.0,0.0003863,30]
[402046482,1768493460309,-500.0,0.0003863,30]
[402046483,1768493460319,-757.13,0.0003863,30]
[402046484,1768493460328,-648.44208003,0.0003863,30]
[402046485,1768493460337,-500.0,0.0003863,30]
[402046486,1768493460347,-520.07,0.0003863,30]
[402046487,1768493460356,-500.0,0.0003863,30]
[402046488,1768493460365,-1148.22,0.0003863,30]
[402046489,1768493460374,-634.49,0.0003863,30]
[402046490,1768493460384,-591.22,0.0003863,30]
[402046491,1768493460394,-500.0,0.0003863,30]
[402046492,1768493460405,-500.0,0.0003863,30]
[402046493,1768493460415,-500.0,0.0003863,30]
[402046494,1768493460425,-500.0,0.0003863,14]
[402046495,1768493460434,-500.0,0.0003863,30]
[402046496,1768493460444,-500.0,0.0003863,30]
[402046497,1768493460453,-951.93,0.0003863,30]
[402046498,1768493460462,-1269.76,0.0003863,30]
[402046499,1768493460471,-825.82,0.0003863,30]
[402046500,1768493460481,-1158.65,0.0003863,30]
[402046501,1768493460490,-500.0,0.0003863,30]
[402046502,1768493460499,-843.5,0.0003863,30]
[402046503,1768493460508,-500.0,0.0003863,30]
[402046504,1768493460518,-812.53,0.0003863,30]
[402046505,1768493460527,-500.0,0.0003863,30]
[402046506,1768493460536,-500.0,0.0003863,30]
[402046507,1768493460546,-644.24,0.0003863,2]
[402046508,1768493460555,-500.0,0.0003863,30]
[402046509,1768493460565,-500.0,0.0003863,30]
[402046510,1768493460575,-500.0,0.0003863,30]
[402046511,1768493460584,-517.42,0.0003863,30]
[402046512,1768493460594,-848.17,0.0003863,30]
[402046513,1768493460603,-983.09,0.0003863,30]
[402046514,1768493460612,-500.0,0.0003863,30]
[402046515,1768493460622,-500.0,0.0003863,30]
[402046516,1768493460631,-500.0,0.0003863,30]
[402046517,1768493460640,-598.95,0.0003863,30]
[402046518,1768493460650,-500.0,0.0003863,30]
[402046519,1768493460659,-500.0,0.0003863,30]
[402046520,1768493460669,-472.67044794,0.0003863,30]
[402046521,1768493460678,-827.29,0.0003863,30]
[402046522,1768493460687,-1642.86,0.0003863,30]
[402046523,1768493460697,-500.0,0.0003863,30]
[402046524,1768493460706,-500.0,0.0003863,30]
[402046525,1768493460715,-541.55,0.0003863,30]
[402046526,1768493460725,-500.0,0.0003863,30]
[402046527,1768493460734,-500.0,0.0003863,30]
[402046528,1768493460744,-500.0,0.0003863,30]
[402046529,1768493460753,-500.0,0.0003863,30]
[402046530,1768493460763,-1000.0,0.0003863,30]
[402046531,1768493460772,-500.0,0.0003863,30]
[402046532,1768493460782,-500.0,0.0003863,30]
[402046533,1768493460791,-500.0,0.0003863,30]
[402046534,1768493460802,-500.0,0.0003863,30]
[402046535,1768493460812,-661.76,0.0003863,30]
[402046536,1768493460821,-500.0,0.0003863,30]
[402046537,1768493460831,-509.5,0.0003863,30]
[402046538,1768493460841,-500.0,0.0003863,30]
[402046539,1768493460850,-500.0,0.0003863,30]
[402046540,1768493460860,-609.13,0.0003863,30]
[402046541,1768493460869,-794.37,0.0003863,30]
[402046542,1768493460878,-2033.95,0.0003863,30]
[402046543,1768493460888,-876.54,0.0003863,30]
[402046544,1768493460897,-500.0,0.0003863,30]
[402046545,1768493460906,-500.0,0.0003863,30]
[402046546,1768493460916,-754.36,0.0003863,30]
[402046547,1768493460925,-594.86,0.0003863,30]
[402046548,1768493460934,-829.16,0.0003863,30]
[402046549,1768493460944,-601.87,0.0003863,30]
[402046550,1768493460953,-500.0,0.0003863,30]
[402046551,1768493460962,-583.58,0.0003863,30]
[402046552,1768493460971,-500.0,0.0003863,30]
[402046553,1768493460981,-500.0,0.0003863,30]
[402046554,1768493460991,-500.0,0.0003863,30]
[402046555,1768493461000,-591.59,0.0003863,30]
[402046556,1768493461010,-503.41,0.0003863,30]
[402046557,1768493461020,-598.46,0.0003863,30]
[402046558,1768493461029,-500.0,0.0003863,30]
[402046559,1768493461039,-447.37643947,0.0003863,30]
[402046560,1768493461049,-151.268681,0.0003863,30]
[402046561,1768493461059,-179.128212,0.0003863,30]
[402046562,1768493461072,-500.0,0.0003863,30]
[402046563,1768493461081,-554.28,0.0003863,30]
[402046564,1768493461091,-500.0,0.0003863,14]
[402046565,1768493461100,-550.44,0.0003863,30]
[402046566,1768493461111,-500.0,0.0003863,30]
[402046567,1768493461121,-500.0,0.0003863,30]
[402046568,1768493461130,-980.05,0.0003863,30]
[402046569,1768493461142,-798.32,0.0003863,30]
[402046570,1768493461151,-500.0,0.0003863,30]
[402046571,1768493461160,-1004.92,0.0003863,30]
[402046572,1768493461170,-500.0,0.0003863,30]
[402046573,1768493461182,-1048.7,0.0003863,30]
[402046574,1768493461191,-999.72,0.0003863,30]
[402046575,1768493461200,-964.5,0.0003863,30]
[402046576,1768493461210,-500.0,0.0003863,30]
[402046577,1768493461219,-500.0,0.0003863,30]
[402046578,1768493461229,-925.16,0.0003863,30]
[402046579,1768493461239,-915.52,0.0003863,30]
[402046580,1768493461248,-500.0,0.0003863,30]
[402046581,1768493461258,-1492.15,0.0003863,30]
[402046582,1768493461268,-753.25,0.0003863,30]
[402046583,1768493461277,-500.0,0.0003863,30]
[402046584,1768493461286,-500.0,0.0003863,30]
[402046585,1768493461296,-1131.41,0.0003863,30]
[402046586,1768493461306,-520.76934729,0.0003863,30]
[402046587,1768493461315,-500.0,0.0003863,30]
[402046588,1768493461324,-500.0,0.0003863,30]
[402046589,1768493461333,-703.98,0.0003863,30]
[402046590,1768493461343,-1007.34,0.0003863,30]
[402046591,1768493461353,-500.0,0.0003863,30]
[402046592,1768493461364,-1566.96,0.0003863,30]
[402046593,1768493461374,-1425.44,0.0003863,30]
[402046594,1768493461384,-500.0,0.0003863,30]
[402046595,1768493461395,-500.0,0.0003863,30]
[402046596,1768493461404,-500.0,0.0003863,30]
[402046597,1768493461414,-500.0,0.0003863,30]
[402046598,1768493461424,-500.0,0.0003863,30]
[402046599,1768493461433,-579.05,0.0003863,30]
[402046600,1768493461444,-500.0,0.0003863,30]
[402046601,1768493461453,-500.0,0.0003863,30]
[402046602,1768493461463,-963.7,0.0003863,30]
[402046603,1768493461472,-912.5,0.0003863,30]
[402046604,1768493461482,-779.28,0.0003863,30]
[402046605,1768493461491,-500.0,0.0003863,30]
[402046606,1768493461501,-717.44,0.0003863,30]
[402046607,1768493461510,-500.0,0.0003863,30]
[402046608,1768493461519,-615.37,0.0003863,30]
[402046609,1768493461529,-920.21,0.0003863,30]
[402046610,1768493461538,-500.0,0.0003863,30]
[402046611,1768493461550,-737.22,0.0003863,30]
[402046612,1768493461561,-859.38,0.0003863,30]
[402046613,1768493461571,-650.02,0.0003863,30]
[402046614,1768493461581,-736.25,0.0003863,30]
[402046615,1768493461591,-541.75,0.0003863,30]
[402046616,1768493461601,-500.0,0.0003863,30]
[402046617,1768493461611,-500.0,0.0003863,30]
[402046618,1768493461621,-500.0,0.0003863,30]
[402046619,1768493461631,-526.16,0.0003863,30]
[402046620,1768493461641,-500.0,0.0003863,30]
[402046621,1768493461650,-500.0,0.0003863,30]
[402046622,1768493461660,-1196.07,0.0003863,30]
[402046623,1768493461671,-538.21,0.0003863,30]
[402046624,1768493461680,-509.97,0.0003863,30]
[402046625,1768493461690,-500.0,0.0003863,30]
[402046626,1768493461699,-927.72,0.0003863,30]
[402046627,1768493461709,-681.91,0.0003863,30]
[402046628,1768493461718,-944.18,0.0003863,30]
[402046629,1768493461728,-500.0,0.0003863,30]
[402046630,1768493461738,-500.0,0.0003863,30]
[402046631,1768493461749,-500.0,0.0003863,30]
[402046632,1768493461759,-512.96928846,0.0003863,30]
[402046633,1768493461769,-500.0,0.0003863,30]
[402046634,1768493461778,-1218.77,0.0003863,30]
[402046635,1768493461788,-500.0,0.0003863,30]
[402046636,1768493461800,-779.19,0.0003863,30]
[402046637,1768493461810,-500.0,0.0003863,30]
[402046638,1768493461819,-967.52,0.0003863,30]
[402046639,1768493461830,-500.0,0.0003863,30]
[402046640,1768493461840,-500.0,0.0003863,30]
[402046641,1768493461849,-555.47,0.0003863,30]
[402046642,1768493461859,-1303.25,0.0003863,30]
[402046643,1768493461869,-165.14015815,0.0003863,30]
[402046644,1768493461878,-555.94,0.0003863,30]
[402046645,1768493461888,-500.0,0.0003863,30]
[402046646,1768493461897,-996.31,0.0003863,30]
[402046647,1768493461907,-1005.12,0.0003863,30]
[402046648,1768493461916,-1223.56,0.0003863,30]
[402046649,1768493461925,-500.0,0.0003863,30]
[402046650,1768493461935,-988.34,0.0003863,30]
[402046651,1768493461944,-500.0,0.0003863,30]
[402046652,1768493461954,-500.0,0.0003863,30]
[402046653,1768493461963,-500.0,0.0003863,30]
[402046654,1768493461972,-1004.29,0.0003863,30]
[402046655,1768493461981,-500.0,0.0003863,30]
[402046656,1768493461992,-500.0,0.0003863,30]
[402046657,1768493462001,-500.0,0.0003863,30]
[402046658,1768493462010,-500.0,0.0003863,30]
[402046659,1768493462020,-664.17,0.0003863,30]
[402046660,1768493462029,-500.0,0.0003863,30]
[402046661,1768493462039,-500.0,0.0003863,30]
[402046662,1768493462050,-1012.84,0.0003863,30]
[402046663,1768493462059,-500.0,0.0003863,30]
[402046664,1768493462072,-278.60106431,0.0003863,30]
[402046665,1768493462082,-500.0,0.0003863,30]
[402046666,1768493462091,-167.14986883,0.0003863,30]
[402046667,1768493462101,-500.0,0.0003863,30]
[402046668,1768493462111,-500.0,0.0003863,30]
[402046669,1768493462121,-500.0,0.0003863,30]
[402046670,1768493462130,-271.37,0.0003863,30]
[402046671,1768493462142,-500.0,0.0003863,30]
[402046672,1768493462151,-500.0,0.0003863,30]
[402046673,1768493462161,-500.0,0.0003863,30]
[402046674,1768493462170,-500.0,0.0003863,30]
[402046675,1768493462180,-533.31475484,0.0003863,30]
[402046676,1768493462189,-500.0,0.0003863,30]
[402046677,1768493462198,-1090.84,0.0003863,30]
[402046678,1768493462208,-500.0,0.0003863,30]
[402046679,1768493462217,-500.0,0.0003863,30]
[402046680,1768493462227,-1033.54,0.0003863,30]
[402046681,1768493462236,-500.0,0.0003863,30]
[402046682,1768493462247,-500.0,0.0003863,30]
[402046683,1768493462257,-231.8063626,0.0003863,30]
[402046684,1768493462268,-899.71,0.0003863,30]
[402046685,1768493462278,-500.0,0.0003863,30]
[402046686,1768493462288,-300.0,0.0003863,2]
[402046687,1768493462300,-500.0,0.0003863,30]
[402046688,1768493462310,-500.0,0.0003863,30]
[402046689,1768493462320,-1094.88,0.0003863,30]
[402046690,1768493462330,-500.0,0.0003863,30]
[402046691,1768493462339,-1432.67,0.0003863,30]
[402046692,1768493462349,-1229.6,0.0003863,30]
[402046693,1768493462359,-500.0,0.0003863,30]
[402046694,1768493462368,-500.0,0.0003863,30]
[402046695,1768493462377,-500.0,0.0003863,30]
[402046696,1768493462387,-500.0,0.0003863,30]
[402046697,1768493462396,-881.45,0.0003863,30]
[402046698,1768493462406,-500.0,0.0003863,30]
[402046699,1768493462416,-510.32,0.0003863,30]
[402046700,1768493462426,-500.0,0.0003863,30]
[402046701,1768493462436,-500.0,0.0003863,30]
[402046702,1768493462446,-500.0,0.0003863,30]
[402046703,1768493462456,-928.18,0.0003863,30]
[402046704,1768493462465,-502.6,0.0003863,30]
[402046705,1768493462474,-500.0,0.0003863,30]
[402046706,1768493462484,-500.0,0.0003863,30]
[402046707,1768493462493,-1680.55,0.0003863,30]
[402046708,1768493462502,-500.0,0.0003863,30]
[402046709,1768493462511,-500.64918405,0.0003863,30]
[402046710,1768493462521,-500.0,0.0003863,30]
[402046711,1768493462530,-578.34,0.0003863,30]
[402046712,1768493462540,-920.7,0.0003863,30]
[402046713,1768493462551,-334.04,0.0003863,30]
[402046714,1768493462561,-765.29,0.0003863,30]
[402046715,1768493462570,-500.0,0.0003863,30]
[402046716,1768493462580,-1095.13,0.0003863,30]
[402046717,1768493462590,-500.0,0.0003863,30]
[402046718,1768493462599,-500.0,0.0003863,30]
[402046719,1768493462608,-500.0,0.0003863,30]
[402046720,1768493462618,-1194.08,0.0003863,30]
[402046721,1768493462628,-500.0,0.0003863,30]
[402046722,1768493462637,-500.0,0.0003863,30]
[402046723,1768493462648,-1721.9,0.0003863,30]
[402046724,1768493462658,-500.0,0.0003863,30]
[402046725,1768493462668,-500.0,0.0003863,30]
[402046726,1768493462678,-500.0,0.0003863,30]
[402046727,1768493462687,-500.0,0.0003863,30]
[402046728,1768493462697,-500.0,0.0003863,30]
[402046729,1768493462707,-500.0,0.0003863,30]
[402046730,1768493462716,-711.39,0.0003863,30]
[402046731,1768493462725,-979.85,0.0003863,30]
[402046732,1768493462735,-644.6,0.0003863,30]
[402046733,1768493462745,-1131.55,0.0003863,30]
[402046734,1768493462754,-500.0,0.0003863,30]
[402046735,1768493462764,-500.0,0.0003863,30]
[402046736,1768493462774,-500.0,0.0003863,30]
[402046737,1768493462783,-500.89,0.0003863,30]
[402046738,1768493462794,-500.0,0.0003863,30]
[402046739,1768493462804,-1434.56,0.0003863,30]
[402046740,1768493462814,-475.89103557,0.0003863,30]
[402046741,1768493462823,-502.84,0.0003863,30]
[402046742,1768493462833,-500.0,0.0003863,30]
[402046743,1768493462842,-1042.53,0.0003863,30]
[402046744,1768493462852,-895.6,0.0003863,30]
[402046745,1768493462862,-1062.05,0.0003863,30]
[402046746,1768493462872,-958.09,0.0003863,30]
[402046747,1768493462882,-500.0,0.0003863,30]
[402046748,1768493462892,-500.0,0.0003863,30]
[402046749,1768493462901,-558.58,0.0003863,30]
[402046750,1768493462911,-500.0,0.0003863,30]
[402046751,1768493462921,-500.0,0.0003863,30]
[402046752,1768493462931,-500.0,0.0003863,30]
[402046753,1768493462941,-168.14212304,0.0003863,30]
[402046754,1768493462950,-1891.27,0.0003863,30]
[402046755,1768493462960,-500.0,0.0003863,30]
[402046756,1768493462970,-500.0,0.0003863,30]
[402046757,1768493462979,-552.88,0.0003863,30]
[402046758,1768493462988,-500.0,0.0003863,30]
[402046759,1768493462998,-500.0,0.0003863,30]
[402046760,1768493463008,-692.3,0.0003863,30]
[402046761,1768493463018,-500.0,0.0003863,30]
[402046762,1768493463028,-1028.78,0.0003863,30]
[402046763,1768493463037,-569.43,0.0003863,30]
[402046764,1768493463047,-295.10570568,0.0003863,30]
[402046765,1768493463057,-500.0,0.0003863,30]
[402046766,1768493463069,-1194.08,0.0003863,30]
[402046767,1768493463078,-541.84,0.0003863,30]
[402046768,1768493463087,-500.0,0.0003863,30]
[402046769,1768493463097,-715.11,0.0003863,30]
[402046770,1768493463107,-500.0,0.0003863,30]
[402046771,1768493463116,-500.0,0.0003863,30]
[402046772,1768493463273,-500.0,0.0003863,120]
[402046773,1768493463284,-545.63,0.0003863,30]
[402046774,1768493463294,-584.28,0.0003863,30]
[402046775,1768493463305,-500.0,0.0003863,30]
[402046776,1768493463314,-500.0,0.0003863,30]
[402046777,1768493463324,-1430.69,0.0003863,30]
[402046778,1768493463334,-500.0,0.0003863,30]
[402046779,1768493463344,-500.0,0.0003863,30]
[402046780,1768493463353,-500.0,0.0003863,30]
[402046781,1768493463363,-500.0,0.0003863,30]
[402046782,1768493463372,-614.37,0.0003863,30]
[402046783,1768493463381,-2916.63,0.0003863,30]
[402046784,1768493463390,-500.0,0.0003863,30]
[402046785,1768493463400,-964.82,0.0003863,30]
[402046786,1768493463409,-500.0,0.0003863,30]
[402046787,1768493463419,-519.44733033,0.0003863,30]
[402046788,1768493463428,-500.0,0.0003863,30]
[402046789,1768493463437,-500.0,0.0003863,30]
[402046790,1768493463447,-500.0,0.0003863,30]
[402046791,1768493463456,-500.0,0.0003863,30]
[402046792,1768493463465,-668.29,0.0003863,30]
[402046793,1768493463474,-631.88,0.0003863,30]
[402046794,1768493463483,-500.0,0.0003863,30]
[402046795,1768493463492,-500.0,0.0003863,30]
[402046796,1768493463502,-1913.07,0.0003863,30]
[402046797,1768493463511,-500.0,0.0003863,30]
[402046798,1768493463521,-500.0,0.0003863,30]
[402046799,1768493463530,-671.72,0.0003863,30]
[402046800,1768493463540,-500.0,0.0003863,30]
[402046801,1768493463550,-729.73,0.0003863,30]
[402046802,1768493463560,-500.0,0.0003863,30]
[402046803,1768493463569,-500.0,0.0003863,30]
[402046804,1768493463578,-500.0,0.0003863,30]
[402046805,1768493463588,-500.0,0.0003863,30]
[402046806,1768493463597,-1338.82,0.0003863,30]
[402046807,1768493463606,-500.0,0.0003863,30]
[402046808,1768493463615,-510.65,0.0003863,30]
[402046809,1768493463624,-746.74,0.0003863,30]
[402046810,1768493463634,-500.0,0.0003863,30]
[402046811,1768493463642,-500.0,0.0003863,30]
[402046812,1768493463652,-500.0,0.0003863,30]
[402046813,1768493463662,-508.18,0.0003863,30]
[402046814,1768493463671,-500.0,0.0003863,30]
[402046815,1768493463680,-1077.71,0.0003863,30]
[402046816,1768493463689,-500.0,0.0003863,30]
[402046817,1768493463699,-500.0,0.0003863,30]
[402046818,1768493463708,-500.0,0.0003863,30]
[402046819,1768493463716,-500.0,0.0003863,30]
[402046820,1768493463726,-527.45,0.0003863,30]
[402046821,1768493463735,-500.0,0.0003863,30]
[402046822,1768493463745,-524.11,0.0003863,30]
[402046823,1768493463754,-1193.07,0.0003863,30]
[402046824,1768493463763,-500.0,0.0003863,30]
[402046825,1768493463772,-500.0,0.0003863,30]
[402046826,1768493463782,-500.0,0.0003863,30]
[402046827,1768493463799,-2596.9,0.0003863,30]
[402046828,1768493463811,-500.0,0.0003863,30]
[402046829,1768493463821,-500.0,0.0003863,30]
[402046830,1768493463831,-756.39,0.0003863,30]
[402046831,1768493463840,-500.0,0.0003863,30]
[402046832,1768493463850,-631.8,0.0003863,30]
[402046833,1768493463861,-501.38,0.0003863,30]
[402046834,1768493463871,-500.0,0.0003863,30]
[402046835,1768493463881,-500.0,0.0003863,30]
[402046836,1768493463892,-500.0,0.0003863,30]
[402046837,1768493463901,-500.0,0.0003863,30]
[402046838,1768493463910,-548.41,0.0003863,30]
[402046839,1768493463920,-500.0,0.0003863,30]
[402046840,1768493463930,-500.0,0.0003863,30]
[402046841,1768493463939,-1021.88,0.0003863,30]
[402046842,1768493463949,-316.40454185,0.0003863,30]
[402046843,1768493463959,-500.0,0.0003863,30]
[402046844,1768493463968,-500.0,0.0003863,30]
[402046845,1768493463978,-500.0,0.0003863,30]
[402046846,1768493463988,-811.85,0.0003863,30]
[402046847,1768493463997,-940.99,0.0003863,30]
[402046848,1768493464007,-500.0,0.0003863,30]
[402046849,1768493464018,-500.0,0.0003863,30]
[402046850,1768493464029,-500.0,0.0003863,30]
[402046851,1768493464039,-500.0,0.0003863,30]
[402046852,1768493464049,-500.0,0.0003863,30]
[402046853,1768493464059,-500.0,0.0003863,30]
[402046854,1768493464072,-1150.05,0.0003863,30]
[402046855,1768493464083,-815.43,0.0003863,30]
[402046856,1768493464092,-613.26,0.0003863,30]
[402046857,1768493464103,-500.0,0.0003863,30]
[402046858,1768493464112,-500.0,0.0003863,30]
[402046859,1768493464122,-877.92,0.0003863,30]
[402046860,1768493464132,-584.76,0.0003863,30]
[402046861,1768493464141,-500.0,0.0003863,30]
[402046862,1768493464152,-500.0,0.0003863,30]
[402046863,1768493464162,-932.23,0.0003863,30]
[402046864,1768493464172,-500.0,0.0003863,30]
[402046865,1768493464183,-892.37,0.0003863,30]
[402046866,1768493464192,-1973.13,0.0003863,30]
[402046867,1768493464202,-500.0,0.0003863,30]
[402046868,1768493464212,-556.55,0.0003863,30]
[402046869,1768493464221,-619.39,0.0003863,30]
[402046870,1768493464231,-500.0,0.0003863,30]
[402046871,1768493464241,-508.68,0.0003863,30]
[402046872,1768493464250,-1427.94,0.0003863,14]
[402046873,1768493464260,-500.0,0.0003863,30]
[402046874,1768493464270,-500.0,0.0003863,30]
[402046875,1768493464281,-500.0,0.0003863,30]
[402046876,1768493464290,-500.0,0.0003863,30]
[402046877,1768493464300,-682.75,0.0003863,30]
[402046878,1768493464309,-500.0,0.0003863,30]
[402046879,1768493464319,-500.0,0.0003863,30]
[402046880,1768493464328,-3100.95,0.0003863,30]
[402046881,1768493464338,-500.0,0.0003863,30]
[402046882,1768493464348,-841.86,0.0003863,30]
[402046883,1768493464358,-500.0,0.0003863,30]
[402046884,1768493464368,-500.0,0.0003863,30]
[402046885,1768493464378,-500.0,0.0003863,30]
[402046886,1768493464388,-500.0,0.0003863,30]
[402046887,1768493464398,-500.0,0.0003863,30]
[402046888,1768493464407,-500.0,0.0003863,30]
[402046889,1768493464416,-1154.84,0.0003863,30]
[402046890,1768493464426,-755.23,0.0003863,30]
[402046891,1768493464436,-816.46,0.0003863,30]
[402046892,1768493464446,-500.0,0.0003863,30]
[402046893,1768493464455,-1320.75,0.0003863,30]
[402046894,1768493464465,-1344.96,0.0003863,30]
[402046895,1768493464475,-833.03,0.0003863,30]
[402046896,1768493464485,-4100.78,0.0003863,30]
[402046897,1768493464494,-670.67,0.0003863,30]
[402046898,1768493464504,-500.0,0.0003863,30]
[402046899,1768493464514,-1407.5,0.0003863,30]
[402046900,1768493464524,-500.0,0.0003863,30]
[402046901,1768493464535,-500.0,0.0003863,30]
[402046902,1768493464545,-500.0,0.0003863,30]
[402046903,1768493464556,-500.0,0.0003863,30]
[402046904,1768493464566,-583.27,0.0003863,30]
[402046905,1768493464577,-500.0,0.0003863,30]
[402046906,1768493464589,-690.57,0.0003863,30]
[402046907,1768493464599,-500.0,0.0003863,30]
[402046908,1768493464609,-1242.37,0.0003863,30]
[402046909,1768493464619,-1332.53,0.0003863,30]
[402046910,1768493464629,-716.06,0.0003863,30]
[402046911,1768493464639,-2042.88,0.0003863,30]
[402046912,1768493464650,-500.0,0.0003863,30]
[402046913,1768493464661,-500.0,0.0003863,30]
[402046914,1768493464671,-787.32,0.0003863,30]
[402046915,1768493464680,-500.0,0.0003863,30]
[402046916,1768493464690,-500.0,0.0003863,30]
[402046917,1768493464700,-500.0,0.0003863,30]
[402046918,1768493464710,-845.79,0.0003863,30]
[402046919,1768493464720,-766.52,0.0003863,30]
[402046920,1768493464730,-789.93,0.0003863,30]
[402046921,1768493464741,-1716.11,0.0003863,30]
[402046922,1768493464751,-500.0,0.0003863,30]
[402046923,1768493464762,-509.24,0.0003863,30]
[402046924,1768493464772,-815.72,0.0003863,30]
[402046925,1768493464782,-1261.16,0.0003863,30]
[402046926,1768493464791,-500.0,0.0003863,30]
[402046927,1768493464802,-1167.44,0.0003863,30]
[402046928,1768493464812,-549.16,0.0003863,30]
[402046929,1768493464822,-522.36,0.0003863,30]
[402046930,1768493464832,-915.89,0.0003863,30]
[402046931,1768493464841,-500.0,0.0003863,30]
[402046932,1768493464851,-1435.07,0.0003863,30]
[402046933,1768493464861,-791.47,0.0003863,30]
[402046934,1768493464870,-500.0,0.0003863,30]
[402046935,1768493464880,-624.68,0.0003863,30]
[402046936,1768493464890,-1638.91,0.0003863,30]
[402046937,1768493464900,-688.2,0.0003863,30]
[402046938,1768493464909,-1587.69,0.0003863,30]
[402046939,1768493464919,-500.0,0.0003863,30]
[402046940,1768493464929,-500.0,0.0003863,30]
[402046941,1768493464939,-817.62,0.0003863,30]
[402046942,1768493464949,-761.28,0.0003863,30]
[402046943,1768493464959,-854.93,0.0003863,30]
[402046944,1768493464969,-500.0,0.0003863,30]
[402046945,1768493464979,-1291.56,0.0003863,30]
[402046946,1768493464989,-500.0,0.0003863,30]
[402046947,1768493464998,-500.0,0.0003863,30]
[402046948,1768493465008,-637.81,0.0003863,30]
[402046949,1768493465018,-1029.02,0.0003863,30]
[402046950,1768493465027,-1055.94,0.0003863,30]
[402046951,1768493465037,-500.0,0.0003863,30]
[402046952,1768493465046,-500.0,0.0003863,30]
[402046953,1768493465056,-642.78,0.0003863,30]
[402046954,1768493465067,-1104.33,0.0003863,30]
[402046955,1768493465079,-1158.54,0.0003863,30]
[402046956,1768493465088,-500.0,0.0003863,30]
[402046957,1768493465098,-1097.44,0.0003863,30]
[402046958,1768493465108,-500.0,0.0003863,30]
[402046959,1768493465119,-782.47,0.0003863,30]
[402046960,1768493465128,-693.49,0.0003863,30]
[402046961,1768493465138,-578.24,0.0003863,30]
[402046962,1768493465148,-1081.62,0.0003863,30]
[402046963,1768493465158,-500.0,0.0003863,30]
[402046964,1768493465167,-500.0,0.0003863,30]
[402046965,1768493465177,-500.0,0.0003863,30]
[402046966,1768493465187,-500.0,0.0003863,30]
[402046967,1768493465196,-500.0,0.0003863,30]
[402046968,1768493465207,-500.0,0.0003863,30]
[402046969,1768493465216,-500.0,0.0003863,30]
[402046970,1768493465226,-500.0,0.0003863,30]